bitfinex/quotes_BTCUSD_20241020
["timestamp","ask_amount","ask_price","bid_price","bid_amount"]
[1729392053816,1.47655713,68168.0,68167.0,0.000827]
[1729392057312,1.46559708,68168.0,68167.0,0.000827]
[1729392057531,1.47658478,68168.0,68167.0,0.000827]
[1729392058906,1.60861078,68168.0,68167.0,0.000827]
[1729392060260,1.47658478,68168.0,68167.0,0.000827]
[1729392060901,1.59763195,68168.0,68167.0,0.000827]
[1729392061121,1.60862206,68168.0,68167.0,0.000827]
[1729392063455,1.60862308,68168.0,68167.0,0.000827]
[1729392063702,1.7050233,68168.0,68167.0,0.000827]
[1729392063926,1.71601378,68168.0,68167.0,0.000827]
[1729392067662,1.71601977,68168.0,68167.0,0.000827]
[1729392071831,1.7160277,68168.0,68167.0,0.000827]
[1729392075131,1.5840017,68168.0,68167.0,0.000827]
[1729392075598,3.5840017,68168.0,68167.0,0.000827]
[1729392079079,3.58401574,68168.0,68167.0,0.000827]
[1729392087495,3.47662528,68168.0,68167.0,0.000827]
[1729392090591,3.4766283,68168.0,68167.0,0.000827]
[1729392090819,3.47663355,68168.0,68167.0,0.000827]
[1729392094324,3.4766331,68168.0,68167.0,0.000827]
[1729392098032,3.47663298,68168.0,68167.0,0.000827]
[1729392098247,3.4766328,68168.0,68167.0,0.000827]
[1729392098471,3.6086588,68168.0,68167.0,0.000827]
[1729392099350,3.4766328,68168.0,68167.0,0.000827]
[1729392100423,3.6086588,68168.0,68167.0,0.000827]
[1729392101112,3.64426537,68168.0,68167.0,0.000827]
[1729392101792,3.60851903,68168.0,68167.0,0.000827]
[1729392102008,3.64426596,68168.0,68167.0,0.000827]
[1729392105760,3.64426603,68168.0,68167.0,0.000827]
[1729392106004,3.6085191,68168.0,68167.0,0.000827]
[1729392106229,3.6442658,68168.0,68167.0,0.000827]
[1729392109446,3.6085191,68168.0,68167.0,0.000827]
[1729392109685,3.60865852,68168.0,68167.0,0.000827]
[1729392112324,3.61365852,68168.0,68167.0,0.000827]
[1729392113005,3.57791239,68168.0,68167.0,0.000827]
[1729392113255,3.61365465,68168.0,68167.0,0.000827]
[1729392113752,3.57791239,68168.0,68167.0,0.000827]
[1729392113993,3.61365466,68168.0,68167.0,0.000827]
[1729392114932,3.69795394,68168.0,68167.0,0.000827]
[1729392115149,3.61365466,68168.0,68167.0,0.000827]
[1729392117212,3.57791149,68168.0,68167.0,0.000827]
[1729392117424,3.60265626,68168.0,68167.0,0.000827]
[1729392117857,3.613654,68168.0,68167.0,0.000827]
[1729392123549,3.61365327,68168.0,68167.0,0.000827]
[1729392123777,3.61365121,68168.0,68167.0,0.000827]
[1729392124001,3.76261036,68168.0,68167.0,0.000827]
[1729392125603,3.76261036,68168.0,68158.0,0.05911929]
[1729392125604,0.90055817,68160.0,68158.0,0.05911929]
[1729392125823,0.90055817,68160.0,68158.0,0.19116529]
[1729392125824,0.20069677,68159.0,68158.0,0.19116529]
[1729392126066,0.41428326,68159.0,68158.0,0.19116529]
[1729392126307,0.41428326,68159.0,68158.0,0.20947275]
[1729392129357,0.72590877,68159.0,68158.0,0.20947275]
[1729392129574,0.41428326,68159.0,68158.0,0.20947275]
[1729392134609,0.41428326,68159.0,68158.0,0.15035346]
[1729392134840,0.40328552,68159.0,68158.0,0.15035346]
[1729392135275,0.41427582,68159.0,68158.0,0.15118046]
[1729392138651,0.41427641,68159.0,68158.0,0.15118046]
[1729392138855,0.40326605,68159.0,68158.0,0.15118046]
[1729392139093,0.41425694,68159.0,68158.0,0.15118046]
[1729392142373,0.40327567,68159.0,68158.0,0.15118046]
[1729392142575,0.4142695,68159.0,68158.0,0.15118046]
[1729392145862,0.4142695,68159.0,68158.0,0.14618046]
[1729392146074,0.4142695,68159.0,68158.0,0.1501341]
[1729392146723,0.29500401,68159.0,68158.0,0.1501341]
[1729392147811,0.29665801,68159.0,68158.0,0.1501341]
[1729392150445,0.29665801,68159.0,68153.0,0.04402795]
[1729392150446,0.51178895,68152.0,68150.0,0.514122]
[1729392150704,0.01374232,68151.0,68150.0,0.646183]
[1729392153465,0.01374232,68151.0,68150.0,0.66287364]
[1729392153690,0.01374232,68151.0,68150.0,0.41287364]
[1729392154657,0.01374232,68151.0,68150.0,0.66287364]
[1729392158375,0.01374232,68151.0,68150.0,0.84027364]
[1729392158626,0.51178895,68152.0,68151.0,0.132059]
[1729392158839,0.52554161,68152.0,68151.0,0.230959]
[1729392159054,0.52554161,68152.0,68151.0,0.24764846]
[1729392159493,0.51178895,68152.0,68151.0,0.24764846]
[1729392160152,0.52719275,68152.0,68151.0,0.24764846]
[1729392160374,0.51344295,68152.0,68151.0,0.24764846]
[1729392160616,0.51344295,68152.0,68151.0,0.35761934]
[1729392161153,0.51344295,68152.0,68151.0,0.24764846]
[1729392161810,0.51344295,68152.0,68151.0,0.35761934]
[1729392162438,0.51344295,68152.0,68151.0,0.24764846]
[1729392163667,0.51344295,68152.0,68151.0,0.35761934]
[1729392164491,0.51344295,68152.0,68151.0,0.35762688]
[1729392164718,0.51344295,68152.0,68151.0,0.24764846]
[1729392166906,0.51344295,68152.0,68151.0,0.35762472]
[1729392169718,0.51344295,68152.0,68151.0,0.35762893]
[1729392172129,0.51344295,68152.0,68151.0,0.35762565]
[1729392173788,0.51344295,68152.0,68151.0,0.24764846]
[1729392174926,0.51344295,68152.0,68151.0,0.33062841]
[1729392175590,0.51344295,68152.0,68151.0,0.24264846]
[1729392176305,0.51344295,68152.0,68151.0,0.33062722]
[1729392176544,0.51344295,68152.0,68150.0,0.000827]
[1729392176780,0.51344295,68152.0,68151.0,0.05948815]
[1729392177008,0.51344295,68152.0,68151.0,0.19154715]
[1729392178140,0.51344295,68152.0,68151.0,0.14755795]
[1729392178564,0.51344295,68152.0,68151.0,0.19154574]
[1729392178780,0.51344295,68152.0,68151.0,0.14755795]
[1729392179222,0.51344295,68152.0,68151.0,0.19154606]
[1729392179446,0.51344295,68152.0,68151.0,0.14755795]
[1729392180649,0.80845401,68151.0,68150.0,0.264949]
[1729392180879,0.80845401,68151.0,68150.0,0.39701]
[1729392184025,0.80845401,68151.0,68150.0,0.41140305]
[1729392187785,0.82220545,68151.0,68150.0,0.41140305]
[1729392188020,0.80845401,68151.0,68150.0,0.41140305]
[1729392188249,0.82220524,68151.0,68150.0,0.41140305]
[1729392188488,0.9626209,68151.0,68150.0,0.41140305]
[1729392188945,0.82220524,68151.0,68150.0,0.41140305]
[1729392190085,0.91530524,68151.0,68150.0,0.41140305]
[1729392190828,0.91530524,68151.0,68150.0,0.47738794]
[1729392194791,0.91530524,68151.0,68150.0,0.41140305]
[1729392195017,0.91695924,68151.0,68150.0,0.47738794]
[1729392195240,0.91695924,68151.0,68150.0,0.41140305]
[1729392196155,0.10850523,68151.0,68150.0,0.41140305]
[1729392198687,0.10849915,68151.0,68150.0,0.41140305]
[1729392199307,0.10849915,68151.0,68150.0,0.47738794]
[1729392201213,0.10849915,68151.0,68150.0,0.41140305]
[1729392202113,0.10849924,68151.0,68150.0,0.41140305]
[1729392205552,0.10849966,68151.0,68150.0,0.41140305]
[1729392209316,0.10849993,68151.0,68150.0,0.41140305]
[1729392213927,0.10849993,68151.0,68150.0,0.14728105]
[1729392214142,0.10849993,68151.0,68150.0,0.19127724]
[1729392216535,0.10850289,68151.0,68150.0,0.19127724]
[1729392216756,0.10850289,68151.0,68150.0,0.19127614]
[1729392223313,0.10850289,68151.0,68150.0,0.14728105]
[1729392227372,0.094754,68151.0,68150.0,0.14728105]
[1729392227581,0.10850427,68151.0,68150.0,0.14728105]
[1729392233571,0.10850427,68151.0,68150.0,0.21327856]
[1729392234449,0.094754,68151.0,68150.0,0.21327856]
[1729392236444,0.094754,68151.0,68150.0,0.21330047]
[1729392236915,0.10850502,68151.0,68150.0,0.21330047]
[1729392237578,0.10850502,68151.0,68150.0,0.14728105]
[1729392237794,0.10850502,68151.0,68150.0,0.21330047]
[1729392240310,0.094754,68151.0,68150.0,0.21330047]
[1729392240545,0.10850512,68151.0,68150.0,0.21330047]
[1729392240765,0.10850512,68151.0,68150.0,0.14728105]
[1729392240989,0.10850512,68151.0,68150.0,0.21330302]
[1729392242595,0.10850512,68151.0,68150.0,0.14728105]
[1729392243287,0.10850512,68151.0,68150.0,0.19129655]
[1729392244820,0.10850512,68151.0,68150.0,0.14728105]
[1729392248340,0.10850512,68151.0,68150.0,0.18629605]
[1729392249459,0.10850589,68151.0,68150.0,0.18629605]
[1729392251740,0.10850589,68151.0,68150.0,0.01439305]
[1729392251741,0.57186543,68151.0,68150.0,0.01439305]
[1729392251990,0.66827871,68151.0,68150.0,0.01439305]
[1729392252449,0.53621971,68151.0,68150.0,0.01439305]
[1729392252677,0.53621971,68151.0,68150.0,0.01522005]
[1729392253340,0.53621988,68151.0,68150.0,0.01522005]
[1729392254286,0.43577849,68151.0,68150.0,0.01022005]
[1729392254515,0.43577849,68151.0,68150.0,0.01486233]
[1729392255924,0.43577849,68151.0,68150.0,0.14692333]
[1729392256920,0.43577849,68151.0,68150.0,0.01486233]
[1729392257206,0.58473764,68151.0,68150.0,0.01486233]
[1729392257439,0.58473764,68151.0,68150.0,0.14692333]
[1729392259202,0.58473764,68151.0,68150.0,0.01486233]
[1729392259450,0.58473764,68151.0,68150.0,0.14692333]
[1729392260798,0.58473764,68151.0,68150.0,0.01486233]
[1729392261017,0.60671968,68151.0,68150.0,0.01486233]
[1729392261240,0.61771479,68151.0,68150.0,0.14692333]
[1729392261682,0.61771344,68151.0,68150.0,0.14692333]
[1729392263014,0.58472946,68151.0,68150.0,0.14692333]
[1729392263243,0.60671542,68151.0,68150.0,0.14692333]
[1729392263521,0.61770834,68151.0,68150.0,0.14692333]
[1729392264390,0.59572282,68151.0,68150.0,0.14692333]
[1729392264615,0.58472783,68151.0,68150.0,0.14692333]
[1729392265922,0.60671778,68151.0,68150.0,0.14692333]
[1729392267936,0.61771312,68151.0,68150.0,0.14692333]
[1729392268347,0.60671778,68151.0,68150.0,0.14692333]
[1729392268558,0.61771508,68151.0,68150.0,0.14692333]
[1729392268892,0.60671778,68151.0,68150.0,0.14692333]
[1729392269761,0.61771591,68151.0,68150.0,0.14692333]
[1729392270864,0.60671778,68151.0,68150.0,0.14692333]
[1729392271310,0.61771573,68151.0,68150.0,0.14692333]
[1729392271520,0.60671778,68151.0,68150.0,0.14692333]
[1729392271740,0.61771558,68151.0,68150.0,0.14692333]
[1729392272222,0.46875643,68151.0,68150.0,0.14692333]
[1729392275094,0.46875643,68151.0,68150.0,0.01486233]
[1729392275733,0.46875643,68151.0,68150.0,0.14692333]
[1729392276181,0.46875825,68151.0,68150.0,0.14692333]
[1729392276616,0.46875825,68151.0,68150.0,0.01486233]
[1729392276825,0.6177174,68151.0,68150.0,0.01486233]
[1729392277296,0.6177174,68151.0,68150.0,0.14692333]
[1729392277981,0.6177174,68151.0,68150.0,0.01486233]
[1729392278209,0.6177174,68151.0,68150.0,0.14692333]
[1729392278907,0.6177174,68151.0,68150.0,0.01486233]
[1729392279556,0.61773487,68151.0,68150.0,0.14692333]
[1729392280458,0.61773487,68151.0,68150.0,0.01486233]
[1729392280670,0.61773487,68151.0,68150.0,0.14692333]
[1729392281811,0.61773487,68151.0,68150.0,0.01486233]
[1729392282035,0.61773487,68151.0,68150.0,0.14692333]
[1729392282258,0.61773487,68151.0,68150.0,0.01486233]
[1729392283153,0.61773516,68151.0,68150.0,0.01486233]
[1729392283832,0.61773516,68151.0,68150.0,0.14692333]
[1729392285619,0.61773516,68151.0,68150.0,0.01486233]
[1729392286510,0.61773516,68151.0,68150.0,0.01463512]
[1729392287164,0.61773612,68151.0,68150.0,0.01463512]
[1729392287738,0.61773612,68151.0,68150.0,0.14669612]
[1729392288754,0.46877697,68151.0,68150.0,0.01463512]
[1729392289196,0.46877697,68151.0,68150.0,0.14669612]
[1729392290028,0.46877697,68151.0,68150.0,0.01463512]
[1729392290300,0.60083597,68151.0,68150.0,0.01463512]
[1729392290546,0.56508505,68151.0,68150.0,0.01463512]
[1729392290754,0.58983715,68151.0,68150.0,0.01463512]
[1729392290920,0.60083768,68151.0,68150.0,0.01463512]
[1729392291126,0.46877868,68151.0,68150.0,0.01463512]
[1729392291754,0.61773783,68151.0,68150.0,0.01463512]
[1729392292799,0.75479683,68151.0,68150.0,0.01463512]
[1729392293250,0.62273783,68151.0,68150.0,0.01463512]
[1729392294148,0.7437963,68151.0,68150.0,0.01463512]
[1729392294398,0.6117373,68151.0,68150.0,0.01463512]
[1729392294777,0.62273877,68151.0,68150.0,0.01463512]
[1729392294988,0.75479777,68151.0,68150.0,0.01463512]
[1729392295191,0.62273877,68151.0,68150.0,0.01883307]
[1729392295382,0.62273877,68151.0,68150.0,0.000827]
[1729392295628,0.62273877,68151.0,68150.0,0.01882303]
[1729392297999,0.61173433,68151.0,68150.0,0.01882303]
[1729392298209,0.62273378,68151.0,68150.0,0.01882303]
[1729392299545,0.47377463,68151.0,68150.0,0.15088403]
[1729392301365,0.46877463,68151.0,68150.0,0.15088403]
[1729392301597,0.29046135,68151.0,68150.0,0.15088403]
[1729392302494,0.27346212,68151.0,68150.0,0.06283549]
[1729392302708,0.27346212,68151.0,68150.0,0.15088403]
[1729392302709,0.29545988,68151.0,68150.0,0.15088403]
[1729392303187,0.27346212,68151.0,68150.0,0.15088403]
[1729392303393,0.43941865,68151.0,68150.0,0.15088403]
[1729392303616,0.41742127,68151.0,68150.0,0.15088403]
[1729392304300,0.44441887,68151.0,68150.0,0.01882303]
[1729392304528,0.44441887,68151.0,68150.0,0.15088403]
[1729392304921,0.44441824,68151.0,68150.0,0.15088403]
[1729392305366,0.43941824,68151.0,68150.0,0.15088403]
[1729392305580,0.26846212,68151.0,68150.0,0.19489649]
[1729392307122,0.17536212,68151.0,68150.0,0.15088403]
[1729392307331,0.17536212,68151.0,68150.0,0.19489649]
[1729392307543,0.17536212,68151.0,68150.0,0.15088403]
[1729392308254,0.16436053,68151.0,68150.0,0.15088403]
[1729392308490,0.16436053,68151.0,68150.0,0.06283549]
[1729392308709,0.17535847,68151.0,68150.0,0.15088403]
[1729392308926,0.17535847,68151.0,68150.0,0.19489649]
[1729392309136,0.17535847,68151.0,68150.0,0.15088403]
[1729392309361,0.18635611,68151.0,68150.0,0.19489649]
[1729392309789,0.18635611,68151.0,68150.0,0.15088403]
[1729392310002,0.18635611,68151.0,68150.0,0.19489649]
[1729392310003,0.03739696,68151.0,68150.0,0.19489649]
[1729392310428,0.03739696,68151.0,68150.0,0.15088403]
[1729392310638,0.02639932,68151.0,68150.0,0.19489649]
[1729392310852,0.01540138,68151.0,68150.0,0.19489649]
[1729392311078,0.02639855,68151.0,68150.0,0.15088403]
[1729392311990,0.001654,68151.0,68150.0,0.15088403]
[1729392312220,0.02639735,68151.0,68150.0,0.19489007]
[1729392312433,0.01540033,68151.0,68150.0,0.19489007]
[1729392312866,0.02639717,68151.0,68150.0,0.15088403]
[1729392315756,0.02639533,68151.0,68150.0,0.15088403]
[1729392315965,0.02639533,68151.0,68150.0,0.01882303]
[1729392316168,0.02639533,68151.0,68150.0,0.15088403]
[1729392317076,0.02639533,68151.0,68150.0,0.01882303]
[1729392317299,0.02639533,68151.0,68150.0,0.15088403]
[1729392318353,0.12019533,68151.0,68150.0,0.15088403]
[1729392318610,0.12019559,68151.0,68150.0,0.01882303]
[1729392319256,0.095454,68151.0,68150.0,0.01882303]
[1729392319481,0.1091981,68151.0,68150.0,0.01882303]
[1729392319705,0.12019338,68151.0,68150.0,0.01882303]
[1729392319944,0.14218399,68151.0,68150.0,0.01882303]
[1729392320130,0.12019338,68151.0,68150.0,0.01882303]
[1729392320825,0.12019338,68151.0,68150.0,0.15088403]
[1729392321055,0.12019338,68151.0,68150.0,0.01882303]
[1729392322398,0.1091981,68151.0,68150.0,0.01882303]
[1729392322820,0.10919818,68151.0,68150.0,0.01882303]
[1729392323388,0.58157384,68151.0,68150.0,0.01882303]
[1729392323742,0.71363284,68151.0,68150.0,0.01882303]
[1729392323967,0.58157384,68151.0,68150.0,0.01882303]
[1729392324654,0.71363284,68151.0,68150.0,0.01882303]
[1729392324790,0.58157384,68151.0,68150.0,0.01882303]
[1729392329440,0.46658782,68151.0,68150.0,0.01882303]
[1729392329902,0.47158782,68151.0,68150.0,0.01882303]
[1729392330120,0.47159536,68151.0,68150.0,0.01882303]
[1729392330541,0.46060031,68151.0,68150.0,0.01882303]
[1729392330757,0.47159778,68151.0,68150.0,0.01882303]
[1729392336599,0.61407376,68151.0,68150.0,0.01882303]
[1729392336820,0.47159778,68151.0,68150.0,0.01882303]
[1729392338182,0.60865678,68151.0,68150.0,0.01882303]
[1729392338357,0.47659778,68151.0,68150.0,0.000827]
[1729392338637,0.47659778,68151.0,68150.0,0.01883352]
[1729392339035,0.47659778,68151.0,68150.0,0.000827]
[1729392339562,0.47659778,68151.0,68150.0,0.01883352]
[1729392340785,0.62555693,68151.0,68150.0,0.01883352]
[1729392341197,0.58981511,68151.0,68150.0,0.01883352]
[1729392341409,0.62555671,68151.0,68150.0,0.01883352]
[1729392342885,0.62555748,68151.0,68150.0,0.01883352]
[1729392344790,0.61456005,68151.0,68150.0,0.01883352]
[1729392345000,0.62555801,68151.0,68150.0,0.01883352]
[1729392348925,0.75761701,68151.0,68150.0,0.01883352]
[1729392349144,0.62555801,68151.0,68150.0,0.01883352]
[1729392350751,0.62555801,68151.0,68150.0,0.01883458]
[1729392350971,0.47659886,68151.0,68150.0,0.01883458]
[1729392351624,0.47659886,68151.0,68150.0,0.000827]
[1729392351845,0.47659886,68151.0,68150.0,0.01883458]
[1729392352064,0.4766036,68151.0,68150.0,0.01883458]
[1729392352280,0.47660473,68151.0,68150.0,0.000827]
[1729392352504,0.47660473,68151.0,68150.0,0.01883458]
[1729392352505,0.75762306,68151.0,68150.0,0.01883458]
[1729392352726,0.62556406,68151.0,68150.0,0.01883458]
[1729392354926,0.47660491,68151.0,68150.0,0.01883458]
[1729392359714,0.60866391,68151.0,68150.0,0.01883458]
[1729392360671,0.47660491,68151.0,68150.0,0.01883458]
[1729392360889,0.46560004,68151.0,68150.0,0.01883458]
[1729392361113,0.47659744,68151.0,68150.0,0.01883458]
[1729392362059,0.62555659,68151.0,68150.0,0.01883458]
[1729392362331,0.77136158,68151.0,68150.0,0.01883458]
[1729392362554,0.78895562,68151.0,68150.0,0.000827]
[1729392365552,0.72462263,68151.0,68150.0,0.000827]
[1729392365775,0.76033015,68151.0,68150.0,0.000827]
[1729392365999,0.78889617,68151.0,68150.0,0.000827]
[1729392369248,1.00912168,68151.0,68150.0,0.000827]
[1729392369471,0.78889617,68151.0,68150.0,0.000827]
[1729392371577,0.78888166,68151.0,68150.0,0.000827]
[1729392372931,0.78883988,68151.0,68150.0,0.000827]
[1729392373371,0.78883666,68151.0,68150.0,0.000827]
[1729392373602,0.81171262,68151.0,68150.0,0.000827]
[1729392373796,0.78883666,68151.0,68150.0,0.000827]
[1729392375000,0.80383666,68151.0,68150.0,0.000827]
[1729392375674,0.80377797,68151.0,68150.0,0.000827]
[1729392376327,0.80377356,68151.0,68150.0,0.000827]
[1729392377032,0.83580173,68151.0,68150.0,0.000827]
[1729392377459,0.81294811,68151.0,68150.0,0.000827]
[1729392377921,0.80794811,68151.0,68150.0,0.000827]
[1729392378357,0.80294811,68151.0,68150.0,0.000827]
[1729392380110,0.65398896,68151.0,68150.0,0.000827]
[1729392383534,0.65399275,68151.0,68150.0,0.000827]
[1729392383975,1.16578395,68151.0,68150.0,0.000827]
[1729392386132,1.18864306,68151.0,68150.0,0.000827]
[1729392388551,1.16578395,68151.0,68150.0,0.000827]
[1729392389235,1.1886534,68151.0,68150.0,0.000827]
[1729392389446,1.3147431,68151.0,68150.0,0.000827]
[1729392390957,1.25619365,68151.0,68150.0,0.000827]
[1729392391213,1.31477499,68151.0,68150.0,0.000827]
[1729392394798,1.31478058,68151.0,68150.0,0.000827]
[1729392396318,1.32478058,68151.0,68150.0,0.000827]
[1729392398388,1.2689511,68151.0,68150.0,0.000827]
[1729392398667,1.31382589,68151.0,68150.0,0.000827]
[1729392398888,1.39907136,68151.0,68150.0,0.000827]
[1729392399108,1.35861084,68151.0,68150.0,0.000827]
[1729392399345,1.37618612,68151.0,68150.0,0.000827]
[1729392399799,1.31765588,68151.0,68150.0,0.000827]
[1729392400231,1.32683092,68151.0,68150.0,0.000827]
[1729392400660,1.54705643,68151.0,68150.0,0.000827]
[1729392400881,1.62646119,68151.0,68150.0,0.000827]
[1729392401080,1.69958222,68151.0,68150.0,0.000827]
[1729392401295,1.69957365,68151.0,68150.0,0.000827]
[1729392401509,1.61181231,68151.0,68150.0,0.000827]
[1729392401726,1.69956832,68151.0,68150.0,0.000827]
[1729392401942,1.63711822,68151.0,68150.0,0.000827]
[1729392402170,1.69952665,68151.0,68150.0,0.000827]
[1729392402408,1.64031501,68151.0,68150.0,0.000827]
[1729392402607,1.72806822,68151.0,68150.0,0.000827]
[1729392402846,1.74994675,68151.0,68150.0,0.000827]
[1729392403279,0.98968801,68150.0,68149.0,0.000827]
[1729392403500,1.80847096,68150.0,68149.0,0.000827]
[1729392403818,1.8314418,68150.0,68149.0,0.000827]
[1729392404504,1.97148938,68150.0,68149.0,0.000827]
[1729392406361,2.01289092,68150.0,68149.0,0.000827]
[1729392406565,2.07143713,68150.0,68149.0,0.000827]
[1729392406970,2.09331277,68150.0,68149.0,0.000827]
[1729392409097,2.07137314,68150.0,68149.0,0.000827]
[1729392409736,1.95508557,68150.0,68149.0,0.000827]
[1729392409948,1.98359709,68150.0,68149.0,0.000827]
[1729392411541,1.82165731,68150.0,68149.0,0.000827]
[1729392411778,1.9835727,68150.0,68149.0,0.000827]
[1729392412230,1.9852267,68150.0,68149.0,0.000827]
[1729392412976,1.9852267,68150.0,68147.0,2e-07]
[1729392412977,0.027,68148.0,68147.0,2e-07]
[1729392413188,1.21661774,68148.0,68147.0,2e-07]
[1729392413419,1.12958358,68148.0,68147.0,2e-07]
[1729392413661,1.18810054,68148.0,68147.0,2e-07]
[1729392413869,1.21660821,68148.0,68147.0,2e-07]
[1729392414324,0.456767,68147.0,68146.0,2e-07]
[1729392414532,1.06078077,68147.0,68146.0,2e-07]
[1729392415638,1.17034773,68147.0,68146.0,2e-07]
[1729392416089,1.05878077,68147.0,68146.0,2e-07]
[1729392416357,1.16835719,68147.0,68146.0,2e-07]
[1729392416786,1.06078077,68147.0,68146.0,2e-07]
[1729392417227,1.06075021,68147.0,68146.0,2e-07]
[1729392417665,1.06675021,68147.0,68146.0,2e-07]
[1729392417881,2.30425021,68147.0,68146.0,2e-07]
[1729392418545,2.30225021,68147.0,68146.0,2e-07]
[1729392418982,2.31685797,68147.0,68146.0,2e-07]
[1729392419227,2.38988481,68147.0,68146.0,2e-07]
[1729392420055,2.39188481,68147.0,68146.0,2e-07]
[1729392420773,2.34688588,68147.0,68146.0,2e-07]
[1729392420982,2.54606966,68147.0,68146.0,2e-07]
[1729392421225,2.39166966,68147.0,68146.0,2e-07]
[1729392422289,2.30204969,68147.0,68146.0,2e-07]
[1729392422950,2.38966966,68147.0,68146.0,2e-07]
[1729392423381,2.22064291,68147.0,68146.0,2e-07]
[1729392423608,0.97714291,68147.0,68146.0,2e-07]
[1729392423832,0.91143839,68147.0,68146.0,2e-07]
[1729392424045,0.89774135,68147.0,68146.0,2e-07]
[1729392424287,0.93965984,68147.0,68146.0,2e-07]
[1729392424505,0.93965984,68147.0,68132.0,0.07819]
[1729392424506,0.247079,68141.0,68132.0,0.07819]
[1729392424743,0.44245884,68141.0,68138.0,0.093027]
[1729392424961,0.5611058,68141.0,68138.0,0.093027]
[1729392425175,0.5611058,68141.0,68140.0,0.07814]
[1729392425369,0.4561538,68141.0,68140.0,0.07814]
[1729392426361,0.4561538,68141.0,68140.0,4e-05]
[1729392426813,0.42767418,68141.0,68140.0,4e-05]
[1729392427024,0.45618211,68141.0,68140.0,4e-05]
[1729392429195,0.55558211,68141.0,68140.0,4e-05]
[1729392429440,0.70454126,68141.0,68140.0,4e-05]
[1729392432788,0.70954126,68141.0,68140.0,4e-05]
[1729392433268,0.71454126,68141.0,68140.0,4e-05]
[1729392433509,0.78964126,68141.0,68140.0,4e-05]
[1729392433961,0.83346529,68141.0,68140.0,4e-05]
[1729392434432,0.78964126,68141.0,68140.0,4e-05]
[1729392435597,0.83346529,68141.0,68140.0,4e-05]
[1729392436122,0.78964126,68141.0,68140.0,4e-05]
[1729392436595,0.83346529,68141.0,68140.0,0.000867]
[1729392437817,0.83349626,68141.0,68140.0,0.000867]
[1729392438303,0.80497862,68141.0,68140.0,0.000867]
[1729392438547,0.76115459,68141.0,68140.0,0.000867]
[1729392438790,0.7831027,68141.0,68140.0,0.000867]
[1729392439033,0.77213811,68141.0,68140.0,0.000867]
[1729392439259,0.7896966,68141.0,68140.0,0.000867]
[1729392440374,0.85543265,68141.0,68140.0,0.000867]
[1729392441317,0.79123443,68141.0,68140.0,0.000867]
[1729392441540,0.82690768,68141.0,68140.0,0.000867]
[1729392441750,0.85544628,68141.0,68140.0,0.000867]
[1729392442595,0.95167768,68141.0,68140.0,0.000867]
[1729392442810,0.95167527,68141.0,68140.0,0.000867]
[1729392443035,0.68102575,68141.0,68140.0,0.000867]
[1729392443274,0.61021023,68141.0,68140.0,0.000867]
[1729392443550,0.51476846,68141.0,68140.0,0.000867]
[1729392443772,0.31417208,68141.0,68140.0,0.000867]
[1729392443988,0.31917208,68141.0,68140.0,0.000867]
[1729392444203,0.45125108,68141.0,68140.0,0.01357621]
[1729392444414,0.47411953,68141.0,68140.0,0.000867]
[1729392444626,0.47411953,68141.0,68140.0,0.01357621]
[1729392444883,0.47412127,68141.0,68140.0,0.000867]
[1729392445107,0.34204227,68141.0,68140.0,0.000867]
[1729392445321,0.31917382,68141.0,68140.0,0.09018375]
[1729392445531,0.31917382,68141.0,68140.0,0.077467]
[1729392445719,0.31917382,68141.0,68140.0,0.09018375]
[1729392445961,0.31917208,68141.0,68140.0,0.09018375]
[1729392446819,0.45625108,68141.0,68140.0,0.09018375]
[1729392447279,0.47911164,68141.0,68140.0,0.077467]
[1729392447711,0.45625108,68141.0,68140.0,0.077467]
[1729392447923,0.58724243,68141.0,68140.0,0.000867]
[1729392448361,0.52870768,68141.0,68140.0,0.000867]
[1729392448597,0.58723245,68141.0,68140.0,0.000867]
[1729392448823,0.56436871,68141.0,68140.0,0.000867]
[1729392449038,0.58723245,68141.0,68140.0,0.000867]
[1729392449701,0.47910434,68141.0,68140.0,0.01357998]
[1729392449905,0.47910434,68141.0,68140.0,0.000867]
[1729392450305,0.4562406,68141.0,68140.0,0.000867]
[1729392450515,0.005,68139.0,68138.0,0.000827]
[1729392450722,0.44686411,68139.0,68138.0,0.000827]
[1729392451226,0.31478211,68139.0,68138.0,0.000827]
[1729392451435,0.29722276,68139.0,68138.0,0.000827]
[1729392451643,0.30222276,68139.0,68138.0,0.01353317]
[1729392452059,0.28624648,68139.0,68138.0,0.01353317]
[1729392452277,0.28624648,68139.0,68138.0,0.14561717]
[1729392452278,0.29722065,68139.0,68138.0,0.14561717]
[1729392452906,0.29722065,68139.0,68138.0,0.01353317]
[1729392459336,0.29719146,68139.0,68138.0,0.01353317]
[1729392459557,0.29719146,68139.0,68138.0,0.14561717]
[1729392459791,0.04064361,68139.0,68138.0,0.24281717]
[1729392460027,0.01870908,68139.0,68138.0,0.31791717]
[1729392462432,0.005,68139.0,68138.0,0.31791717]
[1729392463119,0.01870189,68139.0,68138.0,0.31791717]
[1729392463358,2.000787,68140.0,68139.0,0.229282]
[1729392463586,2.000787,68140.0,68139.0,0.30731687]
[1729392463799,2.000787,68140.0,68139.0,0.3176936]
[1729392466287,2.000787,68140.0,68139.0,0.6135978]
[1729392466549,2.000787,68140.0,68139.0,0.61355124]
[1729392467194,2.000787,68140.0,68139.0,0.61155124]
[1729392467414,2.000787,68140.0,68139.0,0.5676936]
[1729392468491,2.000787,68140.0,68139.0,0.5696936]
[1729392468918,2.000787,68140.0,68139.0,0.5676936]
[1729392471093,2.000787,68140.0,68139.0,0.5696936]
[1729392472232,2.000787,68140.0,68139.0,0.5676936]
[1729392474432,2.000787,68140.0,68139.0,0.5685206]
[1729392480885,2.000787,68140.0,68139.0,0.5705206]
[1729392481092,2.000787,68140.0,68139.0,0.5685206]
[1729392481739,2.000787,68140.0,68139.0,0.5705206]
[1729392484036,2.000787,68140.0,68139.0,0.5685206]
[1729392487596,2.000787,68140.0,68139.0,0.4713206]
[1729392490692,2.000787,68140.0,68139.0,0.3962206]
[1729392491320,2.000787,68140.0,68139.0,0.44002209]
[1729392492834,2.000787,68140.0,68139.0,0.44202209]
[1729392493512,2.000787,68140.0,68139.0,0.44207548]
[1729392496275,2.000787,68140.0,68139.0,0.3962206]
[1729392497315,2.000787,68140.0,68139.0,0.46200292]
[1729392497537,2.000787,68140.0,68139.0,0.50781982]
[1729392497968,2.000787,68140.0,68139.0,0.46200292]
[1729392498406,2.000787,68140.0,68139.0,0.50789567]
[1729392501215,2.000787,68140.0,68139.0,0.44206267]
[1729392502243,2.000787,68140.0,68139.0,0.52984001]
[1729392502982,2.000787,68140.0,68139.0,0.44206267]
[1729392503489,2.000787,68140.0,68139.0,0.52990612]
[1729392503720,2.000787,68140.0,68139.0,0.48406405]
[1729392504462,2.000787,68140.0,68139.0,0.3962206]